bitfinex-derivatives/quotes_SOLF0:USTF0_20250712
["timestamp","ask_amount","ask_price","bid_price","bid_amount"]
[1752279692191,3.3,162.99,162.98,3.53599816]
[1752279692392,3.3,162.99,162.98,9.66949816]
[1752279692587,3.3,163.0,162.99,3.49]
[1752279694000,9.4328,163.0,162.99,3.49]
[1752279694794,3.3,162.99,162.98,3.53599816]
[1752279694990,9.4331,162.99,162.98,3.53599816]
[1752279695893,3.3,162.99,162.98,3.53599816]
[1752279699700,3.3,162.99,162.98,9.66949816]
[1752279700000,3.3,162.99,162.98,3.53599816]
[1752279702103,3.3,162.99,162.98,9.66949816]
[1752279703108,3.3,162.99,162.98,3.53599816]
[1752279703304,9.4331,162.99,162.98,3.53599816]
[1752279703700,3.3,162.99,162.98,3.53599816]
[1752279707105,3.3,162.99,162.98,9.59949816]
[1752279708314,6.1326,163.01,162.98,9.59949816]
[1752279708510,3.39,163.0,162.99,3.42]
[1752279709306,6.1326,163.01,162.99,3.42]
[1752279709510,3.39,163.01,162.99,3.42]
[1752279709711,3.39,163.01,162.98,3.46599816]
[1752279709910,3.39,163.0,162.98,0.04599816]
[1752279710805,6.1331,162.99,162.98,0.04599816]
[1752279711011,3.39,162.99,162.98,0.04599816]
[1752279712815,3.39,163.0,162.99,3.42]
[1752279713710,3.39,163.0,162.99,9.553]
[1752279714014,3.39,163.0,162.99,3.42]
[1752279714216,3.39,162.99,162.98,6.17939816]
[1752279714514,3.39,162.99,162.98,9.59939816]
[1752279714714,3.39,162.99,162.98,0.04599816]
[1752279716218,9.5231,162.99,162.98,0.04599816]
[1752279716412,7.03406912,162.99,162.93,3.42]
[1752279716717,3.39,162.98,162.92,3.64406912]
[1752279716917,3.39,162.94,162.92,13.19966912]
[1752279717214,3.39,162.93,162.92,9.5556]
[1752279719314,0.04482457,162.94,162.91,3.42]
[1752279719522,3.39,162.93,162.88,7.06462832]
[1752279719915,3.39,162.91,162.89,6.1367]
[1752279720112,3.39,162.91,162.89,9.5567]
[1752279720418,3.39,162.91,162.89,3.42]
[1752279720610,3.39,162.91,162.87,7.06462832]
[1752279721418,3.43284721,162.91,162.87,7.06462832]
[1752279721615,3.39,162.89,162.87,3.64462832]
[1752279722016,3.39,162.9,162.88,3.42]
[1752279722317,3.39,162.9,162.85,7.06462832]
[1752279723309,3.39,162.87,162.85,3.64462832]
[1752279723509,3.39,162.86,162.85,7.06462832]
[1752279723714,3.39,162.86,162.85,13.20292832]
[1752279724520,3.39,162.86,162.85,9.78292832]
[1752279724720,3.39,162.86,162.85,13.20292832]
[1752279728819,3.39,162.86,162.85,3.64462832]
[1752279729023,3.39,162.86,162.84,6.1386]
[1752279729221,6.1381,162.86,162.83,3.64462832]
[1752279729423,3.39,162.85,162.83,3.64462832]
[1752279729723,3.39,162.85,162.83,9.78352832]
[1752279730622,3.39,162.85,162.84,6.1388]
[1752279730926,3.39,162.85,162.83,3.64462832]
[1752279731822,3.39,162.85,162.81,7.06462832]
[1752279732022,3.39,162.85,162.81,3.64462832]
[1752279732620,6.1403,162.8,162.77,3.64462832]
[1752279732821,3.39,162.79,162.77,3.64462832]
[1752279733218,3.39,162.77,162.75,3.64462832]
[1752279733619,3.39,162.77,162.75,9.78672832]
[1752279734323,3.39,162.77,162.75,7.06462832]
[1752279734522,3.39,162.77,162.75,3.64462832]
[1752279734730,3.31,162.79,162.76,3.54]
[1752279734923,3.31,162.79,162.77,3.64462832]
[1752279736129,3.31,162.79,162.77,9.78582832]
[1752279736821,3.31,162.79,162.78,6.141]
[1752279737230,3.31,162.79,162.78,9.681]
[1752279737529,0.0442585,162.8,162.79,9.6807]
[1752279737728,0.0442585,162.8,162.79,13.32532832]
[1752279737925,3.31,162.82,162.81,6.1399]
[1752279738130,3.31,162.84,162.82,3.54]
[1752279738325,3.31,162.84,162.83,7.18462832]
[1752279739225,3.31,162.84,162.83,13.32382832]
[1752279740925,3.31,162.84,162.83,3.64462832]
[1752279742535,3.31,162.84,162.83,9.78382832]
[1752279745130,3.31,162.86,162.83,3.64462832]
[1752279745336,3.31,162.86,162.85,7.18462832]
[1752279745535,9.448,162.86,162.85,3.64462832]
[1752279746346,3.31,162.86,162.85,3.64462832]
[1752279747145,9.448,162.86,162.85,3.64462832]
[1752279748446,6.1388,162.85,162.83,3.64462832]
[1752279748640,3.31,162.84,162.83,3.64462832]
[1752279749149,9.4488,162.84,162.83,3.64462832]
[1752279749340,3.31,162.83,162.82,0.04149085]
[1752279749744,3.31,162.83,162.78,7.18462832]
[1752279750146,6.1406,162.8,162.78,7.18462832]
[1752279750344,3.31,162.79,162.78,7.18462832]
[1752279750646,3.31,162.79,162.76,7.18462832]
[1752279750847,0.04604251,162.8,162.76,7.18462832]
[1752279751049,0.04604251,162.8,162.78,3.64462832]
[1752279751243,3.35604251,162.8,162.79,3.54]
[1752279751444,0.04604251,162.8,162.79,3.54]
[1752279751841,3.35604251,162.8,162.79,3.54]
[1752279752349,9.49634251,162.8,162.79,3.54]
[1752279752645,3.31,162.79,162.76,3.64462832]
[1752279752848,3.31,162.77,162.76,7.18462832]
[1752279753346,3.31,162.77,162.76,3.64462832]
[1752279753547,3.31,162.77,162.76,7.18462832]
[1752279753947,3.31,162.77,162.76,13.32642832]
[1752279754143,3.31,162.77,162.76,7.18462832]
[1752279756146,3.31,162.77,162.76,3.64462832]
[1752279756346,3.31,162.77,162.75,3.64462832]
[1752279756543,0.04604251,162.8,162.75,7.18462832]
[1752279756753,3.31,162.76,162.75,7.18462832]
[1752279757651,3.31,162.76,162.75,3.64462832]
[1752279758554,9.4518,162.76,162.75,3.64462832]
[1752279759759,3.31,162.76,162.75,3.64462832]
[1752279759947,3.31,162.76,162.75,7.18462832]
[1752279760658,0.04147374,162.79,162.76,3.54]
[1752279760955,3.31,162.84,162.79,3.54]
[1752279761156,3.31,162.83,162.81,6.1395]
[1752279761348,3.31,162.83,162.82,7.18462832]
[1752279762152,3.31,162.83,162.82,3.64462832]
[1752279762749,3.31,162.83,162.82,7.18462832]
[1752279763657,3.31,162.89,162.83,3.54]
[1752279763854,3.31,162.89,162.84,3.64462832]
[1752279764049,3.31,162.85,162.84,3.64462832]
[1752279764255,3.31,162.85,162.84,7.18462832]
[1752279764457,3.31,162.91,162.84,7.18462832]
[1752279764761,3.43,162.88,162.87,7.01462832]
[1752279765453,3.43,162.88,162.87,3.64462832]
[1752279771060,9.5673,162.88,162.87,3.64462832]
[1752279771259,3.43,162.93,162.86,0.04431492]
[1752279771672,3.43,162.93,162.87,7.01462832]
[1752279772161,6.1368,162.9,162.87,7.01462832]
[1752279772364,3.43,162.88,162.87,7.01462832]
[1752279775167,530.36,162.95,162.87,7.01462832]
[1752279775370,3.43,162.9,162.89,3.37]
[1752279775662,3.43,162.9,162.89,7.01462832]
[1752279777464,3.43,162.94,162.89,7.01462832]
[1752279777870,3.43,162.94,162.89,3.64462832]
[1752279778569,3.43,162.94,162.89,7.01462832]
[1752279780366,3.43,162.94,162.89,3.64462832]
[1752279780561,3.43,162.94,162.88,0.04169817]
[1752279781170,6.1364,162.91,162.88,0.04169817]
[1752279781367,3.43,162.9,162.88,0.04169817]
[1752279783270,3.43,162.9,162.88,3.41169817]
[1752279783871,9.5667,162.9,162.88,3.41169817]
[1752279784071,3.43,162.89,162.88,0.04169817]
[1752279784571,9.5669,162.89,162.88,0.04169817]
[1752279785772,3.43,162.89,162.88,0.04169817]
[1752279786268,9.5669,162.89,162.88,0.04169817]
[1752279788076,3.43,162.94,162.89,3.37]
[1752279788269,3.43,162.94,162.91,3.64462832]
[1752279788470,6.1354,162.93,162.91,3.64462832]
[1752279788671,3.43,162.92,162.91,3.64462832]
[1752279790372,9.5658,162.92,162.91,3.64462832]
[1752279790772,3.43,162.92,162.91,3.64462832]
[1752279792181,9.5658,162.92,162.91,3.64462832]
[1752279796190,3.43,162.92,162.91,3.64462832]
[1752279796383,3.43,162.92,162.91,7.08462832]
[1752279797591,9.5658,162.92,162.89,7.08462832]
[1752279797886,3.36,162.9,162.89,7.08462832]
[1752279800794,3.36,162.9,162.89,13.22152832]
[1752279801686,3.36,162.92,162.91,3.44]
[1752279801890,3.36,162.92,162.91,7.08462832]
[1752279803087,0.04540441,162.93,162.91,9.78052832]
[1752279803390,3.36,162.92,162.91,9.78052832]
[1752279803788,3.36,162.92,162.91,9.5759]
[1752279803991,3.36,162.92,162.91,13.22052832]
[1752279804491,3.36,162.92,162.91,7.08462832]
[1752279804692,3.36,162.92,162.88,0.04169817]
[1752279805089,9.4969,162.89,162.88,0.04169817]
[1752279805393,3.36,162.89,162.88,0.04169817]
[1752279806195,3.36,162.89,162.84,3.64462832]
[1752279807195,3.36,162.86,162.83,3.44]
[1752279807391,3.36,162.86,162.82,3.64462832]
[1752279807587,3.36,162.86,162.82,7.08462832]
[1752279807891,3.36,162.85,162.82,13.22392832]
[1752279808991,6.1384,162.85,162.82,13.22392832]
[1752279809195,3.36,162.84,162.82,7.08462832]
[1752279809497,3.36,162.84,162.82,3.64462832]
[1752279809696,3.36,162.83,162.82,13.22412832]
[1752279810796,0.0407266,162.85,162.84,9.5788]
[1752279810997,0.0407266,162.85,162.84,13.22342832]
[1752279814308,3.36,162.87,162.86,6.138]
[1752279814503,6.137,162.89,162.86,13.22262832]
[1752279814694,3.36,162.88,162.87,3.44]
[1752279815000,3.36,162.89,162.88,3.44]
[1752279815202,3.36,162.89,162.88,7.08462832]
[1752279815403,3.36,162.89,162.88,13.22182832]
[1752279816106,3.36,162.89,162.88,7.08462832]
[1752279818102,9.4969,162.89,162.88,3.64462832]
[1752279818796,3.36,162.89,162.88,3.64462832]
[1752279819509,3.36,162.89,162.87,3.68640535]
[1752279820012,3.36,162.88,162.87,0.04177703]
[1752279820512,9.4973,162.88,162.87,0.04177703]
[1752279820708,6.1373,162.88,162.87,0.04177703]
[1752279820914,9.4973,162.88,162.87,0.04177703]
[1752279825310,3.36,162.88,162.87,0.04177703]
[1752279825515,3.36,162.88,162.87,7.18640535]
[1752279825810,6.1364,162.91,162.88,3.5]
[1752279826002,3.61,162.9,162.89,3.64462832]
[1752279826310,3.61,162.9,162.87,3.68640535]
[1752279826812,3.61,162.88,162.87,3.68640535]
[1752279827410,9.7473,162.88,162.87,0.04177703]
[1752279836521,3.61,162.85,162.82,3.5]
[1752279836715,3.61,162.85,162.79,3.64462832]
[1752279837025,3.61,162.85,162.8,3.5]
[1752279837223,3.61,162.85,162.81,3.5]
[1752279837517,3.61,162.86,162.83,3.5]
[1752279837718,3.61,162.85,162.82,3.64462832]
[1752279838024,3.61,162.84,162.83,3.5]
[1752279838921,3.61,162.84,162.82,3.64462832]
[1752279839419,3.61,162.83,162.81,3.5]
[1752279839922,6.1392,162.83,162.81,3.5]
[1752279840123,3.61,162.82,162.81,3.5]
[1752279840624,3.61,162.83,162.81,3.5]
[1752279840925,3.61,162.84,162.83,3.5]
[1752279841524,3.61,162.84,162.82,3.64462832]
[1752279841816,3.61,162.84,162.8,7.14462832]
[1752279842022,3.61,162.84,162.8,3.64462832]
[1752279842222,3.61,162.84,162.8,7.14462832]
[1752279842924,0.04110289,162.85,162.8,7.14462832]
[1752279842925,3.61,162.82,162.8,7.14462832]
[1752279843318,3.61,162.81,162.8,7.14462832]
[1752279844221,3.61,162.81,162.78,3.64462832]
[1752279844414,3.61,162.79,162.78,3.64462832]
[1752279844624,3.61,162.79,162.78,7.14462832]
[1752279844828,3.61,162.79,162.78,3.5]
[1752279847229,3.61,162.79,162.77,7.14462832]
[1752279847425,3.61,162.78,162.77,3.64462832]
[1752279848030,9.751,162.78,162.77,3.64462832]
[1752279848425,3.61,162.77,162.76,3.5]
[1752279848621,3.61,162.77,162.75,7.14462832]
[1752279848822,3.61,162.76,162.75,7.14462832]
[1752279849725,3.61,162.76,162.75,3.5]
[1752279849933,3.61,162.76,162.69,86.11177512]
[1752279850133,3.61,162.76,162.72,3.5]
[1752279850331,3.61,162.76,162.72,9.643]
[1752279850535,3.61,162.81,162.74,3.5]
[1752279850730,0.04628746,162.76,162.74,3.5]
[1752279851030,3.61,162.78,162.75,3.64462832]
[1752279851226,0.04066403,162.77,162.73,7.14462832]
[1752279851627,3.61,162.76,162.73,7.14462832]
[1752279852233,3.61,162.75,162.73,3.64462832]
[1752279852434,3.61,162.75,162.69,81.0]
[1752279852629,3.61,162.75,162.72,0.04350356]
[1752279852828,9.7532,162.73,162.72,0.04350356]
[1752279857330,9.7532,162.73,162.68,3.64462832]
[1752279857331,3.51,162.73,162.65,7.04462832]
[1752279857528,3.51,162.69,162.59,3.4]
[1752279857733,3.64462832,162.7,162.55,6.84636647]
[1752279857734,3.51,162.68,162.61,7.04462832]
[1752279857932,3.51,162.68,162.63,3.4]
[1752279858133,3.64462832,162.72,162.64,3.4]
[1752279858340,3.51,162.71,162.65,3.64462832]
[1752279858534,3.51,162.71,162.66,3.4]
[1752279858729,0.04222716,162.67,162.65,3.64462832]
[1752279859137,3.51,162.67,162.65,7.04462832]
[1752279859338,3.51,162.66,162.65,7.04462832]
[1752279859536,6.1461,162.65,162.63,7.04462832]
[1752279859733,3.51,162.64,162.61,7.04462832]
[1752279859937,3.64462832,162.69,162.61,7.04462832]
[1752279859938,3.51,162.63,162.62,3.4]
[1752279860643,3.51,162.63,162.61,3.64462832]
[1752279860843,3.51,162.63,162.59,3.64462832]
[1752279861138,6.1474,162.62,162.59,3.4]
[1752279861339,6.1474,162.62,162.57,6.1489]
[1752279861340,3.51,162.63,162.58,3.64462832]
[1752279861537,3.55568923,162.63,162.57,3.4]
[1752279861835,3.51,162.58,162.55,3.4]
[1752279862042,3.51,162.58,162.53,3.4]
[1752279862241,3.51,162.58,162.53,6.1505]
[1752279862443,3.51,162.58,162.54,3.4]
[1752279862642,0.03966316,162.57,162.55,3.4]
[1752279862842,0.03966316,162.57,162.53,6.1505]
[1752279863042,3.51,162.55,162.54,3.4]
[1752279864544,0.03966316,162.57,162.55,3.4]
[1752279864744,3.51,162.56,162.55,3.4]
[1752279864944,0.03966316,162.57,162.55,3.4]
[1752279865239,0.03966316,162.57,162.56,7.04462832]
[1752279865443,3.51,162.61,162.56,3.64462832]
[1752279865642,3.51,162.61,162.59,7.04462832]
[1752279865844,3.51,162.6,162.59,7.04462832]
[1752279866142,3.51,162.6,162.49,181.09029172]
[1752279866143,3.51,162.6,162.58,3.64462832]
[1752279866344,3.51,162.6,162.59,3.4]
[1752279866847,3.51,162.6,162.58,3.64462832]
[1752279867141,3.51,162.6,162.58,7.04462832]
[1752279868247,3.51,162.6,162.59,3.4]
[1752279868442,3.51,162.6,162.59,9.5482]
[1752279868643,3.51,162.6,162.59,3.4]
[1752279869847,3.51,162.6,162.58,3.64462832]
[1752279870043,3.51,162.6,162.57,3.64462832]
[1752279870444,3.51,162.6,162.57,7.04462832]
[1752279871148,6.1479,162.6,162.57,7.04462832]
[1752279871446,0.03904761,162.61,162.55,7.04462832]
[1752279871447,3.51,162.59,162.55,7.04462832]
[1752279871850,9.6583,162.59,162.55,13.19412832]
[1752279872044,3.55063855,162.59,162.56,3.4]
[1752279872739,3.51,162.58,162.57,3.4]
[1752279875848,3.51,162.57,162.56,3.4]
[1752279876246,3.51,162.57,162.56,9.5494]
[1752279876450,3.51,162.57,162.56,3.4]
[1752279877148,3.51,162.56,162.55,7.04462832]
[1752279878049,0.04063855,162.59,162.55,7.04462832]
[1752279878249,6.18893855,162.59,162.56,3.4]
[1752279878448,3.51,162.57,162.56,3.4]
[1752279879053,3.51,162.56,162.55,7.04462832]
[1752279879451,3.51,162.56,162.55,13.19432832]
[1752279879654,6.18903855,162.59,162.55,9.79432832]
[1752279879949,3.51,162.57,162.56,3.4]
[1752279880755,3.51,162.57,162.56,9.5494]
[1752279881048,3.51,162.58,162.57,3.4]
[1752279881850,0.04063855,162.59,162.58,9.5486]
[1752279882057,3.51,162.66,162.59,3.4]
[1752279882251,3.51,162.66,162.6,3.64462832]
[1752279882451,3.51,162.62,162.6,3.64462832]
[1752279882856,3.51,162.62,162.56,81.0]
[1752279883152,3.64462832,162.64,162.58,3.4]
[1752279883354,3.51,162.63,162.58,7.04462832]
[1752279883857,3.51,162.61,162.6,3.4]
[1752279884250,3.51,162.64,162.59,6.18829683]
[1752279884459,3.51,162.64,162.6,3.4]
[1752279884659,3.51,162.64,162.59,0.04009683]
[1752279884957,3.55,162.6,162.59,0.04009683]
[1752279887151,9.6978,162.6,162.59,0.04009683]
[1752279889762,3.55,162.57,162.54,3.41]
[1752279889959,3.55,162.57,162.55,3.41]
[1752279890155,3.55,162.57,162.55,3.64462832]
[1752279890362,3.55,162.57,162.56,3.41]
[1752279890562,3.55,162.57,162.56,9.5594]
[1752279891372,3.55,162.59,162.57,3.41]
[1752279891566,3.55,162.59,162.58,3.41]
[1752279891868,3.55,162.65,162.58,3.41]
[1752279892071,6.1473,162.62,162.59,3.64462832]
[1752279892372,3.55,162.65,162.59,3.64462832]
[1752279892672,3.55,162.6,162.59,3.64462832]
[1752279892868,3.55,162.6,162.59,7.05462832]
[1752279894165,3.55,162.61,162.59,13.20282832]
[1752279894368,3.55,162.61,162.6,3.41]
[1752279895573,3.55,162.61,162.6,9.5578]
[1752279895777,6.1469,162.63,162.6,6.1478]
[1752279896074,3.55,162.61,162.6,3.41]
[1752279896271,3.55,162.61,162.6,9.5578]
[1752279896472,3.55,162.61,162.6,3.41]
[1752279897465,3.55,162.61,162.59,3.64462832]
[1752279897670,3.55,162.6,162.59,7.05462832]
[1752279898874,3.55,162.6,162.59,13.20282832]
[1752279901072,3.55,162.6,162.57,3.41]
[1752279901278,3.55,162.6,162.56,81.0]
[1752279901777,3.55,162.57,162.56,81.0]
[1752279902372,3.55,162.57,162.54,13.20462832]
[1752279902877,9.6991,162.57,162.54,13.20462832]
[1752279903074,3.55,162.56,162.54,13.20462832]
[1752279903471,3.55,162.55,162.54,13.20462832]
[1752279904382,0.0434595,162.57,162.55,6.1496]
[1752279904579,3.55,162.56,162.55,3.41]
[1752279906277,0.0434595,162.57,162.54,9.79442832]
[1752279906477,3.55,162.55,162.54,13.20442832]
[1752279907583,0.0434595,162.57,162.55,6.1496]
[1752279907775,3.55,162.56,162.55,9.5596]
[1752279911491,3.64462832,162.62,162.56,3.41]
[1752279911492,3.55,162.62,162.56,3.41]
[1752279911786,3.55,162.62,162.61,3.64462832]
[1752279911986,3.55,162.61,162.59,3.64462832]
[1752279912289,5.1207958,162.66,162.59,7.05462832]
[1752279912483,3.55,162.62,162.59,7.05462832]
[1752279912679,3.55,162.62,162.61,0.04363111]
[1752279913185,9.6971,162.62,162.61,0.04363111]
[1752279914589,3.55,162.62,162.61,0.04363111]
[1752279915489,9.6971,162.62,162.61,0.04363111]
[1752279926389,3.41,162.58,162.56,3.4]
[1752279926858,3.41,162.57,162.56,9.5491]
[1752279927102,3.41,162.57,162.56,3.4]
[1752279927298,3.41,162.57,162.54,84.4]
[1752279927693,3.41,162.56,162.55,3.4]
[1752279928399,3.41,162.56,162.54,87.1499]
[1752279928599,0.0393241,162.58,162.54,90.5499]
[1752279928802,3.41,162.55,162.54,90.5499]
[1752279929096,3.41,162.57,162.56,3.4]
[1752279930393,3.41,162.57,162.55,6.1497]
[1752279930601,3.41,162.56,162.54,87.15]
[1752279930800,3.41,162.55,162.54,90.55]
[1752279930995,0.0393241,162.58,162.54,87.15]
[1752279930996,3.41,162.56,162.54,87.15]
[1752279931199,3.41,162.57,162.56,3.4]
[1752279932097,0.0393241,162.58,162.56,3.4]
[1752279932293,3.4493241,162.58,162.57,7.06174592]
[1752279933994,3.4493241,162.58,162.55,3.4]
[1752279934706,3.4493241,162.58,162.54,81.0]
[1752279934907,3.4493241,162.58,162.53,7.06174592]
[1752279935102,3.4493241,162.58,162.53,3.4]
[1752279935404,3.41,162.54,162.52,3.4]
[1752279935600,3.41,162.53,162.51,9.81284592]
[1752279935796,3.41,162.54,162.51,3.4]
[1752279936001,3.4553261,162.54,162.49,7.06174592]
[1752279936208,3.4553261,162.54,162.5,3.4]
[1752279936395,0.0453261,162.54,162.5,3.4]
[1752279936612,3.41,162.53,162.5,3.4]
[1752279936900,6.1509,162.52,162.49,7.06174592]
[1752279937098,3.41,162.53,162.49,7.06174592]
[1752279937296,3.41,162.53,162.49,3.4]
[1752279937810,6.1509,162.52,162.49,3.4]
[1752279938005,3.41,162.51,162.49,3.4]
[1752279938201,0.0453261,162.54,162.49,3.4]
[1752279938402,3.41,162.53,162.5,3.4]
[1752279938905,6.1508,162.53,162.5,3.4]
[1752279939207,3.41,162.52,162.5,3.4]
[1752279939606,3.41,162.51,162.48,9.5522]
[1752279939801,3.41,162.51,162.47,3.66174592]
[1752279939997,6.151,162.52,162.47,7.06174592]
[1752279940204,6.151,162.52,162.49,3.4]
[1752279940405,3.41,162.5,162.49,3.4]
[1752279940708,6.1506,162.53,162.49,9.5517]
[1752279941007,3.41,162.51,162.5,3.4]
[1752279942202,3.41,162.51,162.48,6.1523]
[1752279942409,3.41,162.51,162.49,3.4]
[1752279942903,3.41,162.51,162.48,7.06174592]
[1752279943203,3.41,162.5,162.48,3.4]
[1752279943407,3.41,162.5,162.48,9.5523]
[1752279943611,3.41,162.49,162.48,9.5523]
[1752279944505,0.04150605,162.5,162.49,9.552]
[1752279944704,0.04150605,162.5,162.49,13.21374592]
[1752279945712,3.33150605,162.5,162.49,9.552]
[1752279946510,3.33150605,162.5,162.49,3.4]
[1752279948310,3.33150605,162.5,162.49,9.552]
[1752279948506,5.1207958,162.6,162.49,3.58]
[1752279948712,3.29,162.59,162.55,7.24174592]
[1752279949019,3.29,162.57,162.55,3.66174592]
[1752279949209,3.29,162.56,162.55,7.24174592]
[1752279949409,3.29,162.56,162.55,3.66174592]
[1752279949613,3.29,162.56,162.54,6.1498]
[1752279949810,3.29,162.55,162.54,13.39154592]
[1752279950702,3.29,162.55,162.54,3.58]
[1752279951408,3.29,162.55,162.54,9.7301]
[1752279951607,3.29,162.55,162.54,6.1501]
[1752279951912,3.29,162.54,162.53,13.43079189]
[1752279954616,3.29,162.54,162.53,6.18904597]
[1752279954817,3.29,162.54,162.53,13.43079189]
[1752279955020,3.29,162.54,162.53,9.85079189]
[1752279956111,3.29,162.54,162.53,0.03884597]
[1752279958122,9.4401,162.54,162.53,0.03884597]
[1752279958418,3.29,162.54,162.53,0.03884597]
[1752279958716,3.29,162.54,162.53,3.61884597]
[1752279958917,3.29,162.54,162.53,0.03884597]
[1752279959619,3.29,162.54,162.53,3.61884597]
[1752279959817,3.29,162.54,162.53,0.03884597]
[1752279960018,9.4401,162.54,162.53,0.03884597]
[1752279962614,3.29,162.54,162.53,0.03884597]
[1752279963421,3.29,162.6,162.54,3.58]
[1752279964622,3.29,162.55,162.54,9.73]
[1752279964823,3.29,162.55,162.54,3.58]
[1752279965321,3.29,162.54,162.53,0.03884597]
[1752279968222,9.4401,162.54,162.53,0.03884597]
[1752279968423,3.29,162.6,162.53,0.03884597]
[1752279968627,3.29,162.58,162.53,0.03884597]
[1752279969026,6.1501,162.54,162.53,0.03884597]
[1752279969228,3.29,162.54,162.48,8.77485696]
[1752279969431,3.29,162.54,162.48,3.66308184]
[1752279969620,3.29,162.49,162.48,3.66308184]
[1752279970123,3.29,162.49,162.47,7.24430422]
[1752279970320,6.1516,162.5,162.47,7.24430422]
[1752279970321,3.29,162.48,162.47,7.24430422]
[1752279972526,3.29,162.48,162.46,6.1531]
[1752279973625,3.29,162.48,162.46,9.7331]
[1752279974129,3.29,162.47,162.46,9.7331]
[1752279975425,3.40036718,162.49,162.48,6.1524]
[1752279975732,0.04036718,162.49,162.48,13.26670422]
[1752279980829,3.40036718,162.49,162.48,13.26670422]
[1752279981536,0.04036718,162.49,162.48,13.26670422]
[1752279983041,3.40036718,162.49,162.48,13.26670422]
[1752279983537,9.55256718,162.49,162.46,13.26740422]
[1752279983842,3.40036718,162.49,162.46,7.11430422]
[1752279984143,3.40036718,162.49,162.47,6.1525]
[1752279984340,3.40036718,162.49,162.46,7.11430422]
[1752279985236,3.40036718,162.49,162.47,9.6027]
[1752279990247,0.04036718,162.49,162.47,6.1527]
[1752279991743,0.04036718,162.49,162.48,9.81670422]
[1752279992550,3.40036718,162.49,162.48,13.26670422]
[1752279992743,3.40036718,162.49,162.47,7.11430422]
[1752279992949,0.04036718,162.49,162.48,3.45]
[1752279993141,0.04036718,162.49,162.48,9.6024]
[1752279993347,3.40036718,162.49,162.48,13.26670422]
[1752279995057,3.40036718,162.49,162.48,9.6024]
[1752279995252,3.40036718,162.49,162.48,13.26670422]
[1752279997552,0.04036718,162.49,162.48,13.26670422]
[1752279998151,3.40036718,162.49,162.48,13.26670422]
[1752280001555,0.04036718,162.49,162.48,13.26670422]
[1752280001758,3.40036718,162.49,162.48,13.26670422]
[1752280003259,3.40036718,162.49,162.48,9.81670422]
[1752280003955,3.36,162.56,162.51,3.45]
[1752280004159,3.36,162.56,162.52,7.11430422]
[1752280004959,3.36,162.56,162.54,9.81440422]
[1752280005756,3.36,162.56,162.54,13.23440422]
[1752280006258,3.36,162.56,162.55,6.1497]
[1752280006453,3.36,162.56,162.55,9.5697]
[1752280007550,178.52,162.6,162.57,6.1489]
[1752280007757,178.52,162.6,162.57,9.81320422]
[1752280008258,3.52,162.59,162.57,9.81320422]
[1752280008460,3.52,162.59,162.57,9.85347071]
[1752280009354,3.52,162.58,162.57,3.70457071]
[1752280009754,3.52,162.58,162.57,0.04026649]
[1752280010653,9.6686,162.58,162.57,0.04026649]
[1752280014266,3.52,162.58,162.57,0.04026649]
[1752280015362,3.52,162.58,162.57,7.12457071]
[1752280015966,3.52,162.58,162.57,13.27357071]
[1752280016163,3.52,162.64,162.58,3.42]